[Event "Titled Tuesday Blitz January 11 2022"]
[White "Moskalenko, Alexander"]
[Black "Papp, Levente"]
[WhiteFideId "4155351"]
[BlackFideId "751243"]
[WhiteElo "2515"]
[BlackElo "2308"]
[Result "1-0"]
[Round "06"]
[TimeControl "180+1"]
[Date "2022.01.11"]
[WhiteClock "0:01:07"]
[BlackClock "0:00:06"]

1. Nf3 {[%clk 0:03:00]}  Nf6 {[%clk 0:02:59]} 2. g3 {[%clk 0:03:01]}  d5 {[%clk 0:02:59]} 3. Bg2 {[%clk 0:03:01]}  c6 {[%clk 0:02:59]} 4. O-O {[%clk 0:03:00]}  Bg4 {[%clk 0:03:00]} 5. d4 {[%clk 0:03:00]}  Nbd7 {[%clk 0:02:59]} 6. Nbd2 {[%clk 0:03:00]}  e6 {[%clk 0:02:58]} 7. Re1 {[%clk 0:03:01]}  h6 {[%clk 0:02:46]} 8. e4 {[%clk 0:03:01]}  dxe4 {[%clk 0:02:46]} 9. Nxe4 {[%clk 0:03:02]}  Nxe4 {[%clk 0:02:46]} 10. Rxe4 {[%clk 0:03:03]}  Bf5 {[%clk 0:02:47]} 11. Re1 {[%clk 0:03:03]}  Be7 {[%clk 0:02:44]} 12. c3 {[%clk 0:03:04]}  O-O {[%clk 0:02:44]} 13. Qb3 {[%clk 0:03:04]}  Qb6 {[%clk 0:02:44]} 14. Nd2 {[%clk 0:03:05]}  Rfd8 {[%clk 0:02:41]} 15. Nc4 {[%clk 0:03:05]}  Qxb3 {[%clk 0:02:41]} 16. axb3 {[%clk 0:03:06]}  Nb6 {[%clk 0:02:36]} 17. Na5 {[%clk 0:03:05]}  Rd7 {[%clk 0:02:36]} 18. Nc4 {[%clk 0:02:55]}  Rdd8 {[%clk 0:02:23]} 19. h4 {[%clk 0:02:29]}  Nxc4 {[%clk 0:02:08]} 20. bxc4 {[%clk 0:02:28]}  Bd3 {[%clk 0:02:09]} 21. c5 {[%clk 0:02:20]}  Bc4 {[%clk 0:02:01]} 22. Ra4 {[%clk 0:02:14]}  Bb5 {[%clk 0:02:00]} 23. Ra2 {[%clk 0:02:04]}  Bc4 {[%clk 0:01:59]} 24. Ra4 {[%clk 0:02:04]}  Bb5 {[%clk 0:01:59]} 25. Ra3 {[%clk 0:02:05]}  a6 {[%clk 0:01:21]} 26. b3 {[%clk 0:01:59]}  Bd3 {[%clk 0:01:21]} 27. Ra2 {[%clk 0:01:49]}  Rd7 {[%clk 0:01:17]} 28. Bh3 {[%clk 0:01:44]}  Kf8 {[%clk 0:01:12]} 29. h5 {[%clk 0:01:44]}  Rd5 {[%clk 0:01:08]} 30. g4 {[%clk 0:01:41]}  Rad8 {[%clk 0:01:05]} 31. Bg2 {[%clk 0:01:41]}  R5d7 {[%clk 0:01:05]} 32. Bf4 {[%clk 0:01:26]}  Kg8 {[%clk 0:00:40]} 33. f3 {[%clk 0:01:25]}  Kh7 {[%clk 0:00:36]} 34. Rd1 {[%clk 0:01:22]}  Bb5 {[%clk 0:00:34]} 35. Re1 {[%clk 0:01:18]}  b6 {[%clk 0:00:20]} 36. cxb6 {[%clk 0:01:16]}  c5 {[%clk 0:00:20]} 37. Bc7 {[%clk 0:01:16]}  Rc8 {[%clk 0:00:19]} 38. c4 {[%clk 0:01:15]}  Bc6 {[%clk 0:00:18]} 39. f4 {[%clk 0:01:11]}  Bxg2 {[%clk 0:00:17]} 40. Kxg2 {[%clk 0:01:12]}  Re8 {[%clk 0:00:11]} 41. d5 {[%clk 0:01:07]}  exd5 {[%clk 0:00:11]} 42. cxd5 {[%clk 0:01:07]}  Rf8 {[%clk 0:00:10]} 43. d6 {[%clk 0:01:06]}  Bxd6 {[%clk 0:00:09]} 44. Rd1 {[%clk 0:01:06]}  Bxc7 {[%clk 0:00:07]} 45. Rxd7 {[%clk 0:01:06]}  Bxb6 {[%clk 0:00:08]} 46. Rxa6 {[%clk 0:01:06]}  Bd8 {[%clk 0:00:04]} 47. Ra8 {[%clk 0:01:06]}  Be7 {[%clk 0:00:05]} 48. Rxf8 {[%clk 0:01:07]}  Bxf8 {[%clk 0:00:06]} 49. Rxf7 {[%clk 0:01:07]} 1-0


[Site "https://www.chess.com"]

[Event "Titled Tuesday Blitz January 11 2022"]
[White "Muradli, Mahammad"]
[Black "Talibov, Shiroghlan"]
[WhiteFideId "13409301"]
[BlackFideId "13429078"]
[WhiteElo "2645"]
[BlackElo "2070"]
[Result "1-0"]
[Round "06"]
[TimeControl "180+1"]
[Date "2022.01.11"]
[WhiteClock "0:00:07"]
[BlackClock "0:00:01"]

1. c4 {[%clk 0:03:00]}  Nf6 {[%clk 0:02:59]} 2. Nc3 {[%clk 0:03:00]}  e6 {[%clk 0:02:58]} 3. e4 {[%clk 0:03:00]}  d5 {[%clk 0:02:58]} 4. cxd5 {[%clk 0:03:00]}  exd5 {[%clk 0:02:59]} 5. e5 {[%clk 0:03:01]}  d4 {[%clk 0:03:00]} 6. exf6 {[%clk 0:03:01]}  dxc3 {[%clk 0:03:00]} 7. Bb5+ {[%clk 0:03:02]}  Nc6 {[%clk 0:02:58]} 8. Qe2+ {[%clk 0:02:51]}  Be6 {[%clk 0:02:58]} 9. dxc3 {[%clk 0:02:52]}  Qxf6 {[%clk 0:02:57]} 10. Nf3 {[%clk 0:02:52]}  Bd6 {[%clk 0:02:42]} 11. Nd4 {[%clk 0:02:40]}  O-O {[%clk 0:02:41]} 12. Nxe6 {[%clk 0:01:54]}  Rfe8 {[%clk 0:02:39]} 13. Bc4 {[%clk 0:01:55]}  Na5 {[%clk 0:02:34]} 14. Be3 {[%clk 0:01:20]}  Nxc4 {[%clk 0:02:30]} 15. Nxg7 {[%clk 0:01:12]}  Rxe3 {[%clk 0:02:12]} 16. fxe3 {[%clk 0:01:12]}  Qh4+ {[%clk 0:02:12]} 17. g3 {[%clk 0:00:17]}  Bxg3+ {[%clk 0:02:12]} 18. Kf1 {[%clk 0:00:18]}  Qh3+ {[%clk 0:01:10]} 19. Kg1 {[%clk 0:00:17]}  Bd6 {[%clk 0:00:21]} 20. Qxc4 {[%clk 0:00:13]}  Qxe3+ {[%clk 0:00:20]} 21. Kg2 {[%clk 0:00:12]}  Qg5+ {[%clk 0:00:16]} 22. Kh3 {[%clk 0:00:07]}  Qe3+ {[%clk 0:00:14]} 23. Kg2 {[%clk 0:00:07]}  Qg5+ {[%clk 0:00:11]} 24. Kf3 {[%clk 0:00:08]}  Qf6+ {[%clk 0:00:06]} 25. Ke2 {[%clk 0:00:08]}  Kxg7 {[%clk 0:00:05]} 26. Raf1 {[%clk 0:00:06]}  Re8+ {[%clk 0:00:03]} 27. Kd1 {[%clk 0:00:06]}  Qe6 {[%clk 0:00:02]} 28. Rhg1+ {[%clk 0:00:07]}  Kf8 {[%clk 0:00:01]} 29. Qxe6 {[%clk 0:00:07]}  Rxe6 {[%clk 0:00:02]} 30. Rg2 {[%clk 0:00:08]}  Rg6 {[%clk 0:00:03]} 31. Rgf2 {[%clk 0:00:08]}  Rg7 {[%clk 0:00:02]} 32. Kc2 {[%clk 0:00:08]}  Kg8 {[%clk 0:00:02]} 33. Re2 {[%clk 0:00:08]}  h6 {[%clk 0:00:03]} 34. b4 {[%clk 0:00:08]}  Kh7 {[%clk 0:00:03]} 35. Kb3 {[%clk 0:00:09]}  b6 {[%clk 0:00:04]} 36. a4 {[%clk 0:00:09]}  Kg6 {[%clk 0:00:03]} 37. Rf3 {[%clk 0:00:09]}  f6 {[%clk 0:00:03]} 38. h3 {[%clk 0:00:09]}  Kf7 {[%clk 0:00:03]} 39. Kc4 {[%clk 0:00:09]}  Be5 {[%clk 0:00:04]} 40. Kb5 {[%clk 0:00:09]}  Ke6 {[%clk 0:00:04]} 41. Ka6 {[%clk 0:00:10]}  c6 {[%clk 0:00:04]} 42. c4 {[%clk 0:00:09]}  Rc7 {[%clk 0:00:04]} 43. Rd3 {[%clk 0:00:07]}  Re7 {[%clk 0:00:04]} 44. c5 {[%clk 0:00:07]}  bxc5 {[%clk 0:00:05]} 45. bxc5 {[%clk 0:00:07]}  Rg7 {[%clk 0:00:05]} 46. Rd6+ {[%clk 0:00:07]}  Kf5 {[%clk 0:00:05]} 47. Rxc6 {[%clk 0:00:08]}  h5 {[%clk 0:00:05]} 48. Rf2+ {[%clk 0:00:04]}  Ke4 {[%clk 0:00:04]} 49. Rcxf6 {[%clk 0:00:05]}  Bxf6 {[%clk 0:00:04]} 50. Rxf6 {[%clk 0:00:06]}  Kd5 {[%clk 0:00:04]} 51. Rf5+ {[%clk 0:00:06]}  Kc6 {[%clk 0:00:04]} 52. Rxh5 {[%clk 0:00:07]}  Rf7 {[%clk 0:00:03]} 53. a5 {[%clk 0:00:07]}  Rg7 {[%clk 0:00:03]} 54. h4 {[%clk 0:00:08]}  Rf7 {[%clk 0:00:02]} 55. Rg5 {[%clk 0:00:08]}  Rh7 {[%clk 0:00:01]} 56. h5 {[%clk 0:00:08]}  Rf7 {[%clk 0:00:01]} 57. h6 {[%clk 0:00:06]}  Rh7 {[%clk 0:00:02]} 58. Rh5 {[%clk 0:00:07]}  Rf7 {[%clk 0:00:01]} 59. h7 {[%clk 0:00:06]}  Rf6 {[%clk 0:00:01]} 60. h8=Q {[%clk 0:00:07]} 1-0


[Site "https://www.chess.com"]

[Event "Titled Tuesday Blitz January 11 2022"]
[White "Panesar Vedant"]
[Black "Andreikin, Dmitry"]
[WhiteFideId "35033018"]
[BlackFideId "4158814"]
[WhiteElo "1971"]
[BlackElo "2736"]
[Result "0-1"]
[Round "06"]
[TimeControl "180+1"]
[Date "2022.01.11"]
[WhiteClock "0:00:59"]
[BlackClock "0:01:15"]

1. d4 {[%clk 0:02:30]}  d5 {[%clk 0:02:59]} 2. Nf3 {[%clk 0:02:30]}  Nf6 {[%clk 0:02:59]} 3. c4 {[%clk 0:02:31]}  c6 {[%clk 0:02:59]} 4. Nc3 {[%clk 0:02:30]}  a6 {[%clk 0:02:59]} 5. e3 {[%clk 0:02:29]}  b5 {[%clk 0:02:58]} 6. b3 {[%clk 0:02:29]}  Bg4 {[%clk 0:02:58]} 7. a4 {[%clk 0:02:30]}  bxc4 {[%clk 0:02:51]} 8. bxc4 {[%clk 0:02:29]}  Nbd7 {[%clk 0:02:52]} 9. Be2 {[%clk 0:02:28]}  e6 {[%clk 0:02:49]} 10. O-O {[%clk 0:02:27]}  Bb4 {[%clk 0:02:48]} 11. Bd2 {[%clk 0:02:27]}  a5 {[%clk 0:02:44]} 12. Na2 {[%clk 0:02:24]}  Bd6 {[%clk 0:02:41]} 13. h3 {[%clk 0:02:15]}  Bh5 {[%clk 0:02:40]} 14. Nc3 {[%clk 0:02:08]}  O-O {[%clk 0:02:40]} 15. cxd5 {[%clk 0:02:02]}  cxd5 {[%clk 0:02:36]} 16. Nb5 {[%clk 0:02:02]}  Bb8 {[%clk 0:02:27]} 17. Ne1 {[%clk 0:02:00]}  Bg6 {[%clk 0:02:23]} 18. Bd3 {[%clk 0:02:00]}  Ne4 {[%clk 0:02:22]} 19. Qe2 {[%clk 0:01:46]}  Qh4 {[%clk 0:02:16]} 20. Rc1 {[%clk 0:01:32]}  Bh5 {[%clk 0:02:08]} 21. Nf3 {[%clk 0:01:29]}  Bxf3 {[%clk 0:02:07]} 22. gxf3 {[%clk 0:01:26]}  Qxh3 {[%clk 0:01:46]} 23. f4 {[%clk 0:01:21]}  Ndf6 {[%clk 0:01:43]} 24. Bxe4 {[%clk 0:01:11]}  Nxe4 {[%clk 0:01:40]} 25. Be1 {[%clk 0:01:10]}  f5 {[%clk 0:01:20]} 26. f3 {[%clk 0:01:09]}  Rf6 {[%clk 0:01:20]} 27. Rc8+ {[%clk 0:01:08]}  Kf7 {[%clk 0:01:20]} 28. Qg2 {[%clk 0:00:59]}  Rg6 {[%clk 0:01:20]} 29. Qxg6+ {[%clk 0:00:58]}  Kxg6 {[%clk 0:01:21]} 30. fxe4 {[%clk 0:00:59]}  Bxf4 {[%clk 0:01:15]} 0-1


[Site "https://www.chess.com"]

[Event "Titled Tuesday Blitz January 11 2022"]
[White "Remolar Gallen, Jose"]
[Black "Fawzy, Adham"]
[WhiteFideId "2215187"]
[BlackFideId "10613129"]
[WhiteElo "2205"]
[BlackElo "2510"]
[Result "0-1"]
[Round "06"]
[TimeControl "180+1"]
[Date "2022.01.11"]
[WhiteClock "0:00:04"]
[BlackClock "0:00:10"]

1. d4 {[%clk 0:03:00]}  Nf6 {[%clk 0:02:50]} 2. Nf3 {[%clk 0:03:00]}  e6 {[%clk 0:02:48]} 3. e3 {[%clk 0:03:00]}  b6 {[%clk 0:02:48]} 4. Bd3 {[%clk 0:03:00]}  Bb7 {[%clk 0:02:48]} 5. O-O {[%clk 0:03:01]}  c5 {[%clk 0:02:48]} 6. b3 {[%clk 0:03:00]}  d5 {[%clk 0:02:49]} 7. Bb2 {[%clk 0:03:00]}  Be7 {[%clk 0:02:49]} 8. Ne5 {[%clk 0:02:58]}  O-O {[%clk 0:02:49]} 9. Qe2 {[%clk 0:02:54]}  Nc6 {[%clk 0:02:45]} 10. a3 {[%clk 0:02:54]}  Rc8 {[%clk 0:02:40]} 11. f4 {[%clk 0:02:53]}  Ne4 {[%clk 0:02:35]} 12. Nd2 {[%clk 0:02:50]}  f5 {[%clk 0:02:33]} 13. Rad1 {[%clk 0:02:47]}  Nxe5 {[%clk 0:02:31]} 14. fxe5 {[%clk 0:02:45]}  cxd4 {[%clk 0:02:15]} 15. exd4 {[%clk 0:02:45]}  Nc3 {[%clk 0:01:56]} 16. Bxc3 {[%clk 0:02:36]}  Rxc3 {[%clk 0:01:57]} 17. g4 {[%clk 0:02:29]}  g6 {[%clk 0:01:38]} 18. gxf5 {[%clk 0:02:25]}  gxf5 {[%clk 0:01:38]} 19. Kh1 {[%clk 0:02:25]}  Kh8 {[%clk 0:01:33]} 20. Rf3 {[%clk 0:02:08]}  Bg5 {[%clk 0:01:27]} 21. Rh3 {[%clk 0:02:04]}  Rc7 {[%clk 0:01:26]} 22. Nf3 {[%clk 0:02:00]}  Rg7 {[%clk 0:01:24]} 23. Rg1 {[%clk 0:01:49]}  Rfg8 {[%clk 0:01:22]} 24. Rhg3 {[%clk 0:01:31]}  Bh6 {[%clk 0:01:03]} 25. Rxg7 {[%clk 0:01:14]}  Rxg7 {[%clk 0:01:04]} 26. Rxg7 {[%clk 0:01:14]}  Kxg7 {[%clk 0:01:02]} 27. Qg2+ {[%clk 0:01:13]}  Kh8 {[%clk 0:00:58]} 28. Qh3 {[%clk 0:01:10]}  Qf8 {[%clk 0:00:58]} 29. Qh5 {[%clk 0:00:55]}  Bc6 {[%clk 0:00:34]} 30. Ng5 {[%clk 0:00:55]}  Be8 {[%clk 0:00:33]} 31. Qh4 {[%clk 0:00:55]}  Bd7 {[%clk 0:00:28]} 32. Kg2 {[%clk 0:00:33]}  Qg7 {[%clk 0:00:26]} 33. Qxh6 {[%clk 0:00:33]}  Qxh6 {[%clk 0:00:22]} 34. Nf7+ {[%clk 0:00:33]}  Kg7 {[%clk 0:00:22]} 35. Nxh6 {[%clk 0:00:34]}  Kxh6 {[%clk 0:00:23]} 36. Kg3 {[%clk 0:00:34]}  Kg5 {[%clk 0:00:19]} 37. h4+ {[%clk 0:00:33]}  Kg6 {[%clk 0:00:19]} 38. Ba6 {[%clk 0:00:28]}  b5 {[%clk 0:00:12]} 39. c4 {[%clk 0:00:18]}  dxc4 {[%clk 0:00:07]} 40. bxc4 {[%clk 0:00:19]}  bxc4 {[%clk 0:00:08]} 41. Bxc4 {[%clk 0:00:20]}  h6 {[%clk 0:00:08]} 42. Kf4 {[%clk 0:00:16]}  Kf7 {[%clk 0:00:07]} 43. h5 {[%clk 0:00:12]}  Bc6 {[%clk 0:00:06]} 44. Bb3 {[%clk 0:00:09]}  Ke7 {[%clk 0:00:07]} 45. a4 {[%clk 0:00:08]}  Be4 {[%clk 0:00:06]} 46. a5 {[%clk 0:00:07]}  Bd3 {[%clk 0:00:07]} 47. d5 {[%clk 0:00:06]}  exd5 {[%clk 0:00:04]} 48. Bxd5 {[%clk 0:00:07]}  Be2 {[%clk 0:00:04]} 49. Bf3 {[%clk 0:00:02]}  Bxf3 {[%clk 0:00:05]} 50. Kxf3 {[%clk 0:00:03]}  Ke6 {[%clk 0:00:05]} 51. Kf4 {[%clk 0:00:02]}  a6 {[%clk 0:00:06]} 52. Kf3 {[%clk 0:00:02]}  Kxe5 {[%clk 0:00:07]} 53. Ke3 {[%clk 0:00:02]}  f4+ {[%clk 0:00:08]} 54. Kf3 {[%clk 0:00:03]}  Kf5 {[%clk 0:00:09]} 55. Kf2 {[%clk 0:00:03]}  Kg4 {[%clk 0:00:10]} 56. Kg2 {[%clk 0:00:04]}  Kxh5 {[%clk 0:00:10]} 0-1


[Site "https://www.chess.com"]

[Event "Titled Tuesday Blitz January 11 2022"]
[White "Samadov, Read"]
[Black "Ezat, Mohamed"]
[WhiteFideId "13417444"]
[BlackFideId "10600906"]
[WhiteElo "2084"]
[BlackElo "2386"]
[Result "0-1"]
[Round "06"]
[TimeControl "180+1"]
[Date "2022.01.11"]
[WhiteClock "0:00:03"]
[BlackClock "0:00:11"]

1. d4 {[%clk 0:03:00]}  Nf6 {[%clk 0:02:59]} 2. c4 {[%clk 0:03:00]}  g6 {[%clk 0:03:00]} 3. g3 {[%clk 0:02:59]}  Bg7 {[%clk 0:02:59]} 4. Bg2 {[%clk 0:02:59]}  O-O {[%clk 0:02:59]} 5. Nc3 {[%clk 0:03:00]}  d6 {[%clk 0:03:00]} 6. Nf3 {[%clk 0:03:00]}  Nc6 {[%clk 0:03:01]} 7. O-O {[%clk 0:02:59]}  Bg4 {[%clk 0:03:01]} 8. h3 {[%clk 0:02:57]}  Bxf3 {[%clk 0:03:01]} 9. Bxf3 {[%clk 0:02:57]}  Nd7 {[%clk 0:03:02]} 10. e3 {[%clk 0:02:57]}  e5 {[%clk 0:03:02]} 11. d5 {[%clk 0:02:57]}  Ne7 {[%clk 0:03:02]} 12. e4 {[%clk 0:02:57]}  f5 {[%clk 0:03:03]} 13. h4 {[%clk 0:02:57]}  Nf6 {[%clk 0:02:58]} 14. h5 {[%clk 0:02:56]}  f4 {[%clk 0:02:57]} 15. hxg6 {[%clk 0:02:55]}  Nxg6 {[%clk 0:02:57]} 16. Kg2 {[%clk 0:02:50]}  fxg3 {[%clk 0:02:51]} 17. fxg3 {[%clk 0:02:37]}  Qd7 {[%clk 0:02:50]} 18. Bg5 {[%clk 0:02:33]}  a6 {[%clk 0:02:29]} 19. Rh1 {[%clk 0:02:16]}  Rf7 {[%clk 0:02:26]} 20. Bxf6 {[%clk 0:02:13]}  Rxf6 {[%clk 0:02:26]} 21. Bg4 {[%clk 0:02:14]}  Qe7 {[%clk 0:02:22]} 22. Be6+ {[%clk 0:02:14]}  Kh8 {[%clk 0:02:19]} 23. Qh5 {[%clk 0:02:05]}  Nf8 {[%clk 0:02:17]} 24. Bf5 {[%clk 0:02:03]}  Rh6 {[%clk 0:02:08]} 25. Qg4 {[%clk 0:02:01]}  Qf6 {[%clk 0:02:02]} 26. Rxh6 {[%clk 0:01:59]}  Qxh6 {[%clk 0:02:02]} 27. Rf1 {[%clk 0:01:52]}  Re8 {[%clk 0:01:47]} 28. Ne2 {[%clk 0:01:32]}  Bf6 {[%clk 0:01:40]} 29. Rh1 {[%clk 0:01:29]}  Qg5 {[%clk 0:01:40]} 30. Qxg5 {[%clk 0:01:19]}  Bxg5 {[%clk 0:01:39]} 31. b4 {[%clk 0:01:18]}  Be3 {[%clk 0:01:34]} 32. Kf3 {[%clk 0:01:16]}  Bd2 {[%clk 0:01:32]} 33. a3 {[%clk 0:01:14]}  a5 {[%clk 0:01:31]} 34. Rd1 {[%clk 0:01:06]}  Bg5 {[%clk 0:01:30]} 35. bxa5 {[%clk 0:01:00]}  Ra8 {[%clk 0:01:30]} 36. Rb1 {[%clk 0:01:00]}  Ra7 {[%clk 0:01:19]} 37. Rb5 {[%clk 0:00:51]}  Bd2 {[%clk 0:01:18]} 38. Bc8 {[%clk 0:00:50]}  Rxa5 {[%clk 0:01:14]} 39. Rxa5 {[%clk 0:00:47]}  Bxa5 {[%clk 0:01:14]} 40. Bxb7 {[%clk 0:00:47]}  Nd7 {[%clk 0:01:14]} 41. Bc6 {[%clk 0:00:43]}  Nc5 {[%clk 0:01:13]} 42. Ng1 {[%clk 0:00:35]}  Kg7 {[%clk 0:01:13]} 43. Nh3 {[%clk 0:00:36]}  Kf6 {[%clk 0:01:13]} 44. Nf2 {[%clk 0:00:34]}  Kg5 {[%clk 0:01:09]} 45. Nd1 {[%clk 0:00:30]}  Nb3 {[%clk 0:01:06]} 46. Nf2 {[%clk 0:00:16]}  Nd2+ {[%clk 0:01:03]} 47. Ke2 {[%clk 0:00:15]}  Nxc4 {[%clk 0:01:04]} 48. a4 {[%clk 0:00:13]}  Bb6 {[%clk 0:00:50]} 49. Bb5 {[%clk 0:00:14]}  Na5 {[%clk 0:00:44]} 50. Kf3 {[%clk 0:00:10]}  Nb7 {[%clk 0:00:43]} 51. Nh3+ {[%clk 0:00:10]}  Kf6 {[%clk 0:00:43]} 52. Nf2 {[%clk 0:00:09]}  Nc5 {[%clk 0:00:43]} 53. Ng4+ {[%clk 0:00:09]}  Kg5 {[%clk 0:00:43]} 54. Ne3 {[%clk 0:00:09]}  Nb3 {[%clk 0:00:37]} 55. Nf5 {[%clk 0:00:10]}  Nd2+ {[%clk 0:00:35]} 56. Kg2 {[%clk 0:00:09]}  Nxe4 {[%clk 0:00:36]} 57. Ng7 {[%clk 0:00:08]}  Nc3 {[%clk 0:00:29]} 58. Bc6 {[%clk 0:00:08]}  Kf6 {[%clk 0:00:29]} 59. Ne6 {[%clk 0:00:07]}  e4 {[%clk 0:00:21]} 60. Nf4 {[%clk 0:00:07]}  Ke5 {[%clk 0:00:20]} 61. Kf1 {[%clk 0:00:08]}  Kd4 {[%clk 0:00:14]} 62. Ke1 {[%clk 0:00:07]}  Ke3 {[%clk 0:00:14]} 63. Ne6 {[%clk 0:00:05]}  Kd3 {[%clk 0:00:13]} 64. g4 {[%clk 0:00:05]}  Ba5 {[%clk 0:00:13]} 65. Kf2 {[%clk 0:00:02]}  e3+ {[%clk 0:00:14]} 66. Kf3 {[%clk 0:00:03]}  Kd2 {[%clk 0:00:12]} 67. Nf4 {[%clk 0:00:03]}  e2 {[%clk 0:00:11]} 68. Nxe2 {[%clk 0:00:03]}  Nxe2 {[%clk 0:00:12]} 69. g5 {[%clk 0:00:03]}  Nd4+ {[%clk 0:00:08]} 70. Ke4 {[%clk 0:00:03]}  Nb3 {[%clk 0:00:08]} 71. Kf5 {[%clk 0:00:03]}  Nc5 {[%clk 0:00:09]} 72. Kf6 {[%clk 0:00:03]}  Bc3+ {[%clk 0:00:09]} 73. Kf7 {[%clk 0:00:03]}  Ke3 {[%clk 0:00:10]} 74. Kg8 {[%clk 0:00:03]}  Kf4 {[%clk 0:00:10]} 75. Kxh7 {[%clk 0:00:03]}  Kxg5 {[%clk 0:00:11]} 76. Kg8 {[%clk 0:00:04]}  Kf5 {[%clk 0:00:11]} 77. Kf7 {[%clk 0:00:04]}  Ke5 {[%clk 0:00:12]} 78. Ke7 {[%clk 0:00:05]}  Ba5 {[%clk 0:00:13]} 79. Kd8 {[%clk 0:00:05]}  Kd4 {[%clk 0:00:10]} 80. Kc8 {[%clk 0:00:05]}  Ne4 {[%clk 0:00:09]} 81. Kb7 {[%clk 0:00:05]}  Kc5 {[%clk 0:00:09]} 82. Ka6 {[%clk 0:00:05]}  Kb4 {[%clk 0:00:10]} 83. Kb7 {[%clk 0:00:04]}  Nc3 {[%clk 0:00:11]} 84. Ka6 {[%clk 0:00:03]}  Nxa4 {[%clk 0:00:11]} 0-1


[Site "https://www.chess.com"]

[Event "Titled Tuesday Blitz January 11 2022"]
[White "Shapkin, Anatoliy"]
[Black "Dastan, Muhammed Batuhan"]
[WhiteFideId "34108332"]
[BlackFideId "6300014"]
[WhiteElo "2223"]
[BlackElo "2410"]
[Result "1-0"]
[Round "06"]
[TimeControl "180+1"]
[Date "2022.01.11"]
[WhiteClock "0:01:26"]
[BlackClock "0:00:17"]

1. d4 {[%clk 0:02:59]}  d5 {[%clk 0:02:59]} 2. c4 {[%clk 0:02:59]}  c6 {[%clk 0:03:00]} 3. cxd5 {[%clk 0:02:59]}  cxd5 {[%clk 0:03:01]} 4. Nc3 {[%clk 0:03:00]}  Nf6 {[%clk 0:03:01]} 5. Nf3 {[%clk 0:03:00]}  Nc6 {[%clk 0:03:02]} 6. Bf4 {[%clk 0:03:00]}  Bf5 {[%clk 0:03:02]} 7. e3 {[%clk 0:03:00]}  e6 {[%clk 0:03:03]} 8. Qb3 {[%clk 0:03:01]}  Bb4 {[%clk 0:03:03]} 9. Ne5 {[%clk 0:03:00]}  Bxc3+ {[%clk 0:02:56]} 10. Qxc3 {[%clk 0:02:59]}  Nxe5 {[%clk 0:02:49]} 11. Bxe5 {[%clk 0:02:58]}  O-O {[%clk 0:02:49]} 12. Be2 {[%clk 0:02:45]}  Rc8 {[%clk 0:02:36]} 13. Qa3 {[%clk 0:02:43]}  Ne4 {[%clk 0:02:16]} 14. O-O {[%clk 0:02:39]}  Qb6 {[%clk 0:02:06]} 15. Rfc1 {[%clk 0:02:36]}  f6 {[%clk 0:01:58]} 16. Bg3 {[%clk 0:02:32]}  Rfd8 {[%clk 0:01:46]} 17. f3 {[%clk 0:02:15]}  Nxg3 {[%clk 0:01:45]} 18. hxg3 {[%clk 0:02:16]}  Kf7 {[%clk 0:01:38]} 19. Kf2 {[%clk 0:02:14]}  g5 {[%clk 0:01:35]} 20. Rc3 {[%clk 0:02:13]}  Rxc3 {[%clk 0:01:28]} 21. Qxc3 {[%clk 0:02:12]}  Rd6 {[%clk 0:01:02]} 22. Rc1 {[%clk 0:02:01]}  Rc6 {[%clk 0:01:02]} 23. Qd2 {[%clk 0:02:02]}  Bg6 {[%clk 0:00:55]} 24. Rc3 {[%clk 0:02:01]}  Qc7 {[%clk 0:00:45]} 25. Qc1 {[%clk 0:01:56]}  Rxc3 {[%clk 0:00:42]} 26. bxc3 {[%clk 0:01:55]}  Ke7 {[%clk 0:00:42]} 27. Qa3+ {[%clk 0:01:53]}  Ke8 {[%clk 0:00:26]} 28. Qxa7 {[%clk 0:01:52]}  h5 {[%clk 0:00:25]} 29. c4 {[%clk 0:01:47]}  dxc4 {[%clk 0:00:23]} 30. Qa4+ {[%clk 0:01:47]}  Ke7 {[%clk 0:00:24]} 31. Qxc4 {[%clk 0:01:46]}  Qb6 {[%clk 0:00:23]} 32. a3 {[%clk 0:01:44]}  Be8 {[%clk 0:00:23]} 33. Qb4+ {[%clk 0:01:42]}  Qxb4 {[%clk 0:00:22]} 34. axb4 {[%clk 0:01:43]}  Kd6 {[%clk 0:00:23]} 35. e4 {[%clk 0:01:42]}  e5 {[%clk 0:00:24]} 36. Ke3 {[%clk 0:01:42]}  h4 {[%clk 0:00:20]} 37. gxh4 {[%clk 0:01:41]}  gxh4 {[%clk 0:00:21]} 38. f4 {[%clk 0:01:40]}  Bd7 {[%clk 0:00:20]} 39. dxe5+ {[%clk 0:01:37]}  fxe5 {[%clk 0:00:21]} 40. f5 {[%clk 0:01:37]}  Bc6 {[%clk 0:00:21]} 41. Bc4 {[%clk 0:01:36]}  Ke7 {[%clk 0:00:21]} 42. Bd5 {[%clk 0:01:35]}  Bb5 {[%clk 0:00:16]} 43. Bxb7 {[%clk 0:01:34]}  Bf1 {[%clk 0:00:16]} 44. Kf2 {[%clk 0:01:33]}  h3 {[%clk 0:00:16]} 45. gxh3 {[%clk 0:01:32]}  Bxh3 {[%clk 0:00:17]} 46. b5 {[%clk 0:01:28]}  Kd6 {[%clk 0:00:16]} 47. Bd5 {[%clk 0:01:25]}  Bg4 {[%clk 0:00:15]} 48. b6 {[%clk 0:01:25]}  Bd1 {[%clk 0:00:16]} 49. b7 {[%clk 0:01:25]}  Kc7 {[%clk 0:00:16]} 50. f6 {[%clk 0:01:25]}  Bh5 {[%clk 0:00:17]} 51. f7 {[%clk 0:01:24]}  Bxf7 {[%clk 0:00:17]} 52. Bxf7 {[%clk 0:01:25]}  Kxb7 {[%clk 0:00:17]} 53. Bd5+ {[%clk 0:01:26]} 1-0


[Site "https://www.chess.com"]

[Event "Titled Tuesday Blitz January 11 2022"]
[White "Stoleriu, George"]
[Black "Onyshchuk, Volodymyr"]
[WhiteFideId "1227505"]
[BlackFideId "14114038"]
[WhiteElo "2203"]
[BlackElo "2642"]
[Result "0-1"]
[Round "06"]
[TimeControl "180+1"]
[Date "2022.01.11"]
[WhiteClock "0:00:05"]
[BlackClock "0:01:59"]

1. e4 {[%clk 0:01:18]}  g6 {[%clk 0:03:00]} 2. d4 {[%clk 0:01:18]}  Bg7 {[%clk 0:03:00]} 3. Nc3 {[%clk 0:01:18]}  d6 {[%clk 0:03:00]} 4. Be3 {[%clk 0:01:16]}  a6 {[%clk 0:03:00]} 5. Qd2 {[%clk 0:01:17]}  b5 {[%clk 0:03:00]} 6. f3 {[%clk 0:01:16]}  Nd7 {[%clk 0:02:57]} 7. h4 {[%clk 0:01:16]}  h6 {[%clk 0:02:56]} 8. Nh3 {[%clk 0:01:14]}  Bb7 {[%clk 0:02:52]} 9. Bd3 {[%clk 0:01:14]}  c5 {[%clk 0:02:50]} 10. d5 {[%clk 0:01:08]}  Ne5 {[%clk 0:02:42]} 11. Be2 {[%clk 0:01:06]}  Nf6 {[%clk 0:02:37]} 12. g4 {[%clk 0:00:58]}  h5 {[%clk 0:02:35]} 13. g5 {[%clk 0:00:56]}  Nfd7 {[%clk 0:02:35]} 14. f4 {[%clk 0:00:54]}  Ng4 {[%clk 0:02:28]} 15. Bxg4 {[%clk 0:00:50]}  hxg4 {[%clk 0:02:27]} 16. Nf2 {[%clk 0:00:51]}  g3 {[%clk 0:02:26]} 17. Ng4 {[%clk 0:00:52]}  Nb6 {[%clk 0:02:25]} 18. Qg2 {[%clk 0:00:30]}  Nc4 {[%clk 0:02:22]} 19. Bc1 {[%clk 0:00:30]}  Qa5 {[%clk 0:02:15]} 20. Qxg3 {[%clk 0:00:25]}  b4 {[%clk 0:02:14]} 21. Nb1 {[%clk 0:00:15]}  b3+ {[%clk 0:02:12]} 22. c3 {[%clk 0:00:14]}  Qxa2 {[%clk 0:02:11]} 23. f5 {[%clk 0:00:11]}  Qxa1 {[%clk 0:02:09]} 24. f6 {[%clk 0:00:11]}  Qxb1 {[%clk 0:02:08]} 25. O-O {[%clk 0:00:12]}  Bf8 {[%clk 0:02:01]} 26. fxe7 {[%clk 0:00:08]}  Bxe7 {[%clk 0:02:01]} 27. Bf4 {[%clk 0:00:04]}  Qxb2 {[%clk 0:02:01]} 28. Nf6+ {[%clk 0:00:04]}  Bxf6 {[%clk 0:02:00]} 29. gxf6 {[%clk 0:00:05]}  O-O-O {[%clk 0:01:59]} 0-1


[Site "https://www.chess.com"]